[Event "Boardwalk Pearson Invitational 2019"]
[Site "Port Elizabeth"]
[Date "2019.03.30"]
[Round "3.3"]
[White "Odendaal, Frederick"]
[Black "Hercules, Benjamin Vincent"]
[Result "0-1"]
[ECO "B62"]
[WhiteElo "1992"]
[BlackElo "2194"]
[Annotator "NA"]
[PlyCount "60"]
[EventDate "2019.03.29"]
[EventType "swiss"]
[EventCountry "RSA"]
[SourceTitle "playchess.com"]
[Source "ChessBase"]
[SourceQuality "1"]
[TimeControl "40/5400+30:1800+30"]

{[%evp 8,60,31,21,14,20,43,-15,2,0,13,7,11,5,35,0,0,-3,-45,-38,11,32767,32767,32767,32767,32767,32767,32767,32767,32767,32767,32767,24,32767,-8,-26,-22,32767,-26,32767,-204,32767,-191,-164,-178,-1192,-1323,32767,32767,32767,-1417,-1412,-2209,-29998,-29999]} 1. e4 {[%emt 0:01:33]} c5 {[%emt 0:00:00]} 2. Nf3 {[%emt 0:00:23]} Nc6 {[%emt 0:00:00]} 3. d4 {[%emt 0:00:03]} cxd4 {[%emt 0:00:00]} 4. Nxd4 {[%emt 0:00:25]} Nf6 {[%emt 0:00:00]} 5. Nc3 {[%emt 0:00:24]} d6 {[%emt 0:00:00]} 6. Bg5 {[%emt 0:00:44]} e6 {[%emt 0:00:30]} 7. Nxc6 {[%emt 0:01:09]} bxc6 {[%emt 0:02:31]} 8. Qf3 {[%emt 0:01:52] B62: Sicilian: Richter-Rauzer: 6...e6: Unusual White 7th moves} (8. e5 dxe5 9. Qf3 Be7 10. Bxf6 Bxf6 11. Qxc6+ Bd7 12. Qd6 Qb8 13. O-O-O Qxd6 14. Rxd6 Rb8 15. Ne4 Be7 16. Ra6 f5 {0-1 (41) Potapov,P (2479)-Ponkratov,P (2613) Khanty-Mansiysk 2017}) 8... e5 {[%emt 0:03:09]} 9. Bc4 {[%emt 0:03:26]} h6 $146 {[%emt 0:01:44]} ({Predecessor:} 9... Be7 10. h3 Rb8 11. O-O O-O 12. Bb3 Nd7 13. Be3 Nb6 14. Rfd1 Be6 15. Rd2 Qd7 {1-0 (34) February,J (1862)-Hercules,B (2174) Boksburg 2018}) 10. Bh4 {[%emt 0:01:16]} Rb8 {[%emt 0:09:53]} 11. O-O {[%emt 0:02:02]} (11. Qd3 $14) 11... Be7 {[%emt 0:03:04]} ({But not} 11... Rxb2 $6 12. Bxf6 Qxf6 13. Qxf6 $16) 12. Bb3 {[%emt 0:02:45]} g5 {[%emt 0:12:37]} 13. Bg3 {[%emt 0:01:01]} Qb6 {[%emt 0:11:07]} 14. Kh1 {[%emt 0:10:03]} Ba6 {[%emt 0:04:10]} 15. Rfe1 {[%emt 0:01:31]} g4 {[%emt 0:00:18]} 16. Qd1 {[%emt 0:01:42]} h5 {[%emt 0:00:36]} 17. Bh4 {[%emt 0:01:10]} Nh7 {[%emt 0:00:34]} 18. Bxe7 {[%emt 0:04:56]} Kxe7 {[%emt 0:00:34]} 19. Qd2 {[%emt 0:07:41]} Rbg8 {[%emt 0:02:04]} ({Black should try} 19... Qd4 $15 20. Qxd4 exd4) 20. Nd1 {[%emt 0:10:48]} Bc8 {[%emt 0:10:53]} 21. Ne3 {[%emt 0:03:46]} Ng5 $1 {[%emt 0:03:16]} 22. Qd3 {[%emt 0:01:32]} h4 {[%emt 0:04:50]} 23. f4 {[%emt 0:06:46]} gxf3 {[%emt 0:00:51]} ({Stronger than} 23... exf4 24. Nf5+ Bxf5 25. exf5+ Kd7 26. f6 $11) 24. gxf3 {[%emt 0:00:02]} Nh3 {[%emt 0:02:10]} 25. Qd2 {[%emt 0:02:08]} Rg6 {[%emt 0:03:01]} 26. f4 $2 {[%emt 0:07:48]} (26. c3) 26... exf4 {[%emt 0:02:14]} 27. Nf5+ {[%emt 0:01:16]} Kf8 {[%emt 0:00:20]} 28. Rf1 {[%emt 0:01:00]} Rhg8 {[%emt 0:00:39]} 29. Nd4 {[%emt 0:05:38]} Rg2 {[%emt 0:01:20]} 30. Qd3 {[%emt 0:02:17] [#]} Rg1+ {[%emt 0:22:35]} 0-1

[Event "Boardwalk Pearson Invitational 2019"]
[Site "Port Elizabeth"]
[Date "2019.03.30"]
[Round "3.4"]
[White "Klaver, Cornelis"]
[Black "Beukes, Dante M"]
[Result "1/2-1/2"]
[ECO "E71"]
[WhiteElo "2072"]
[BlackElo "2114"]
[Annotator "NA"]
[PlyCount "77"]
[EventDate "2019.03.29"]
[EventType "swiss"]
[EventCountry "RSA"]
[SourceTitle "playchess.com"]
[Source "ChessBase"]
[SourceQuality "1"]
[TimeControl "40/5400+30:1800+30"]

{[%evp 8,75,37,30,43,9,12,12,23,21,20,20,47,31,31,7,66,56,78,75,104,70,77,92,32767,32767,32767,32767,93,32767,32767,100,32767,32767,32767,32767,32767,32767,32767,32767,76,32767,32767,74,82,77,97,82,92,93,135,123,130,127,122,124,32767,32767,32767,32767,32767,32767,32767,32767,32767,32767,32767,32767,32767,67]} 1. d4 {[%emt 0:00:06]} Nf6 {[%emt 0:00:00]} 2. c4 {[%emt 0:00:28]} g6 {[%emt 0:00:00]} 3. Nc3 {[%emt 0:00:19]} Bg7 {[%emt 0:00:00]} 4. e4 {[%emt 0:00:10]} d6 {[%emt 0:00:00]} 5. h3 {[%emt 0:00:07]} O-O {[%emt 0:00:11]} 6. Bd3 {[%emt 0:00:16]} Nc6 {[%emt 0:01:04]} 7. Nge2 {[%emt 0:02:09]} e5 {[%emt 0:02:37] E71: King's Indian: 4 e4 d6 5 h3} 8. d5 {[%emt 0:01:35]} Nd4 {[%emt 0:00:54]} 9. Bg5 {[%emt 0:06:21]} (9. Be3 Nh5 10. Qd2 c5 11. Bh6 f5 12. Bxg7 Kxg7 13. exf5 gxf5 14. O-O-O Kh8 15. Qh6 {1-0 (38) Rabrenovic,V (2343)-Radovanovic,M (2422) Zrenjanin 2018}) 9... h6 {[%emt 0:05:43]} 10. Be3 {[%emt 0:00:35]} Nd7 {[%emt 0:08:19]} 11. Bb1 {[%emt 0:09:27]} Nxe2 {[%emt 0:02:39]} 12. Qxe2 {[%emt 0:00:35]} a5 $146 {[%emt 0:01:36]} ({Predecessor:} 12... b6 13. O-O Bb7 14. Bc2 Nc5 15. b4 {1-0 (52) Yeves Miquel,E (1742)-Arellano Guerrero,M Madrid 2014}) 13. g4 {[%emt 0:05:21]} Qe7 {[%emt 0:05:19]} 14. Qd2 {[%emt 0:07:30]} Kh7 {[%emt 0:00:48]} 15. Bc2 {[%emt 0:00:15]} Nc5 {[%emt 0:03:29]} 16. O-O-O {[%emt 0:02:39]} Bd7 {[%emt 0:06:58]} 17. f3 {[%emt 0:12:19]} Rfd8 {[%emt 0:03:55]} 18. h4 {[%emt 0:02:30]} a4 {[%emt 0:16:08]} 19. h5 {[%emt 0:21:59]} g5 {[%emt 0:02:44]} 20. Bxc5 {[%emt 0:00:05]} dxc5 {[%emt 0:00:15]} 21. d6 {[%emt 0:00:02]} Qxd6 {[%emt 0:07:20]} 22. Qxd6 {[%emt 0:00:27]} cxd6 {[%emt 0:00:06]} 23. Rxd6 {[%emt 0:00:04]} Bf8 {[%emt 0:01:22]} 24. Rd2 {[%emt 0:11:08]} Be6 {[%emt 0:04:05]} 25. Rxd8 {[%emt 0:03:41]} Rxd8 {[%emt 0:00:10]} 26. Nd5 {[%emt 0:00:04]} Bxd5 {[%emt 0:05:38]} 27. exd5+ {[%emt 0:00:26]} Kg7 {[%emt 0:00:10]} 28. Bxa4 {[%emt 0:00:05]} Rd6 {[%emt 0:03:29]} 29. Bc2 {[%emt 0:01:10]} Ra6 {[%emt 0:02:59]} 30. a3 {[%emt 0:00:21]} Bd6 {[%emt 0:00:21]} 31. Kd2 {[%emt 0:00:37]} Kf6 {[%emt 0:02:31]} 32. Be4 {[%emt 0:00:40]} Ra5 {[%emt 0:02:26]} 33. Kc2 {[%emt 0:00:28]} Ra7 {[%emt 0:01:38]} 34. Rd1 {[%emt 0:00:10]} Ra4 {[%emt 0:01:33]} 35. Kd3 {[%emt 0:01:37]} Ra6 {[%emt 0:01:43]} 36. Rc1 {[%emt 0:00:59]} Rb6 {[%emt 0:01:57]} 37. Kc3 {[%emt 0:01:40]} Ke7 {[%emt 0:00:45]} 38. Bf5 $14 {[%emt 0:00:21]} (38. Rb1 $16) 38... e4 {[%emt 0:01:59]} 39. b3 {[%emt 0:06:16]} 1/2-1/2

[Event "Boardwalk Pearson Invitational 2019"]
[Site "Port Elizabeth"]
[Date "2019.03.30"]
[Round "4.1"]
[White "Bezuidenhout, Roland"]
[Black "Oatlhotse, Providence"]
[Result "1/2-1/2"]
[ECO "A35"]
[WhiteElo "2171"]
[BlackElo "2320"]
[Annotator "NA"]
[PlyCount "37"]
[EventDate "2019.03.29"]
[EventType "swiss"]
[EventCountry "RSA"]
[SourceTitle "playchess.com"]
[Source "ChessBase"]
[SourceQuality "1"]
[TimeControl "40/5400+30:1800+30"]

1. Nf3 {[%emt 0:00:52]} c5 {[%emt 0:00:00]} 2. c4 {[%emt 0:00:33]} Nc6 {[%emt 0:00:00]} 3. Nc3 {[%emt 0:01:05]} g6 {[%emt 0:00:27]} 4. e3 {[%emt 0:00:04]} Bg7 {[%emt 0:00:49]} 5. d4 {[%emt 0:00:09]} Nf6 {[%emt 0:00:57]} 6. d5 {[%emt 0:00:57]} Na5 {[%emt 0:00:12]} 7. e4 {[%emt 0:04:40]} O-O {[%emt 0:01:52] A35: Symmetrical English: 2 Nc3 Nc6 3 Nf3} 8. h3 {[%emt 0:02:53]} d6 {[%emt 0:02:03]} 9. Bd3 {[%emt 0:00:14] LiveBook: 58 Games} e5 {[%emt 0:03:05]} 10. Bg5 {[%emt 0:00:55]} h6 {[%emt 0:00:35]} 11. Be3 {[%emt 0:00:08]} a6 {[%emt 0:08:01]} 12. Qd2 $146 {[%emt 0:00:12]} ({Predecessor:} 12. a3 b6 13. b4 Nb7 14. Rb1 Nd7 15. Qd2 {0-1 (35) Mchedlishvili,M (2566)-Kotsur,P (2540) Sharjah 2003}) 12... Kh7 $16 {[%emt 0:00:08]} 13. g4 {[%emt 0:00:26]} Ng8 {[%emt 0:01:31]} 14. Qe2 {[%emt 0:01:06]} b5 {[%emt 0:08:25]} 15. cxb5 {[%emt 0:00:51]} axb5 {[%emt 0:02:29]} 16. Nxb5 {[%emt 0:01:21]} Nb3 {[%emt 0:01:03]} 17. Rb1 {[%emt 0:01:33]} Nd4 {[%emt 0:18:21] [#]} 18. Nfxd4 $1 {[%emt 0:00:24]} exd4 {[%emt 0:03:44]} 19. Bf4 {[%emt 0:00:39]} 1/2-1/2

[Event "Boardwalk Pearson Invitational 2019"]
[Site "Port Elizabeth"]
[Date "2019.03.30"]
[Round "4.2"]
[White "Hercules, Benjamin Vincent"]
[Black "Beukes, Dante M"]
[Result "1-0"]
[ECO "E75"]
[WhiteElo "2194"]
[BlackElo "2114"]
[Annotator "NA"]
[PlyCount "75"]
[EventDate "2019.03.29"]
[EventType "swiss"]
[EventCountry "RSA"]
[SourceTitle "playchess.com"]
[Source "ChessBase"]
[SourceQuality "1"]
[TimeControl "40/5400+30:1800+30"]

1. d4 {[%emt 0:00:00]} Nf6 {[%emt 0:00:49]} 2. c4 {[%emt 0:00:00]} g6 {[%emt 0:00:04]} 3. Nc3 {[%emt 0:00:00]} Bg7 {[%emt 0:00:04]} 4. e4 {[%emt 0:00:00]} d6 {[%emt 0:00:03]} 5. Be2 {[%emt 0:00:08]} O-O {[%emt 0:00:07]} 6. Bg5 {[%emt 0:00:02]} c5 {[%emt 0:00:08]} 7. d5 {[%emt 0:00:14]} e6 {[%emt 0:00:19]} 8. Nf3 {[%emt 0:00:41]} exd5 {[%emt 0:01:47]} 9. exd5 {[%emt 0:00:01]} Qb6 {[%emt 0:00:29]} 10. Qd2 {[%emt 0:02:31]} Bf5 {[%emt 0:00:13] LiveBook: 54 Games} 11. O-O {[%emt 0:00:37] E75: King's Indian: Averbakh Variation: 6...c5 7 d5 e6} (11. Nh4 Ne4 12. Nxe4 Bxe4 13. f3 h6 14. Bxh6 Bxh6 15. Qxh6 Qxb2 16. O-O Bc2 17. Rac1 Nd7 18. Rf2 Ba4 19. Bd1 Qa3 20. Bxa4 Qxa4 21. f4 Nf6 22. Nf5 {1-0 (22) Kravtsiv,M (2657)-Amin,B (2672) Martuni 2017}) 11... Ne4 {[%emt 0:00:30]} 12. Nxe4 {[%emt 0:05:22]} Bxe4 {[%emt 0:00:05]} 13. Rae1 {[%emt 0:05:41]} Qxb2 {[%emt 0:01:51]} 14. Be7 {[%emt 0:01:23]} Re8 {[%emt 0:00:18]} 15. Bxd6 {[%emt 0:00:42]} Nd7 {[%emt 1:30:43]} 16. Qxb2 $146 {[%emt 0:15:40]} ({Predecessor:} 16. Bf4 Qa3 17. Ng5 Bc3 18. Qc1 Qxc1 19. Rxc1 {0-1 (73) Zimina,O (2390)-Wieczorek,O (2453) Konya 2017}) 16... Bxb2 {[%emt 0:00:00]} 17. Bf4 {[%emt 0:01:06]} Bc2 {[%emt 0:01:00]} 18. Be3 {[%emt 1:04:52]} a6 {[%emt 0:00:00]} 19. Bd1 {[%emt 0:00:00]} Bd3 {[%emt 0:00:00]} 20. Be2 {[%emt 0:00:00]} Bxe2 {[%emt 0:00:00]} 21. Rxe2 {[%emt 0:00:00]} Bd4 {[%emt 0:00:00]} 22. Rb1 {[%emt 0:00:00]} b6 {[%emt 0:00:00]} 23. Kf1 {[%emt 0:00:00]} Bxe3 {[%emt 0:00:00]} 24. Rxe3 {[%emt 0:00:00]} Kf8 {[%emt 0:00:00]} 25. Ke2 {[%emt 0:00:00]} Rab8 {[%emt 0:00:00]} 26. a4 {[%emt 0:04:00]} Rb7 {[%emt 0:00:00]} 27. Kd3 {[%emt 0:00:00]} Reb8 {[%emt 0:00:00] [#]} (27... Rxe3+ $14 28. Kxe3 (28. fxe3 Ke7 $11) 28... Ke7) 28. Ne5 $1 {[%emt 0:00:00]} Nf6 {[%emt 0:00:00]} 29. Nc6 {[%emt 0:00:00]} Rc8 {[%emt 0:00:00]} 30. Na5 {[%emt 0:00:00]} Rbb8 {[%emt 0:00:00]} 31. Nc6 {[%emt 0:00:00]} Rb7 {[%emt 0:00:00]} 32. Re5 {[%emt 0:00:00]} Ng4 {[%emt 0:00:00]} 33. Re2 {[%emt 0:00:00]} Nf6 {[%emt 0:00:00]} 34. Reb2 {[%emt 0:00:00]} Nd7 {[%emt 0:00:00]} 35. a5 {[%emt 0:00:00]} Ra8 {[%emt 0:00:00]} 36. f4 $18 {[%emt 0:00:00]} Kg7 {[%emt 0:00:00]} 37. axb6 {[%emt 0:00:00]} a5 {[%emt 0:00:00]} 38. Ne5 {[%emt 0:00:00]} 1-0

[Event "Boardwalk Pearson Invitational 2019"]
[Site "Port Elizabeth"]
[Date "2019.03.30"]
[Round "4.3"]
[White "Kromhout, Ewan"]
[Black "Khumalo, Keith"]
[Result "0-1"]
[ECO "D02"]
[WhiteElo "2007"]
[BlackElo "2015"]
[Annotator "NA"]
[PlyCount "92"]
[EventDate "2019.03.29"]
[EventType "swiss"]
[EventCountry "RSA"]
[SourceTitle "playchess.com"]
[Source "ChessBase"]
[SourceQuality "1"]
[TimeControl "40/5400+30:1800+30"]

1. d4 {[%emt 0:00:00]} Nf6 {[%emt 0:00:00]} 2. Nf3 {[%emt 0:00:00]} g6 {[%emt 0:04:19]} 3. Nbd2 {[%emt 0:00:00]} d5 {[%emt 0:01:41]} 4. e3 {[%emt 0:00:00]} Bg7 {[%emt 0:01:47]} 5. b4 {[%emt 0:00:09]} a5 {[%emt 0:01:36] D02: 1 d4 d5 2 Nf3 sidelines, including 2...Nf6 3 g3 and 2...Nf6 3 Bf4} (5... O-O 6. Bb2 c6 7. c4 Nbd7 8. a4 Ne4 9. cxd5 Nxd2 10. Qxd2 cxd5 11. Bd3 Nf6 12. O-O Ne4 13. Qe2 Nd6 14. Rfc1 Bf5 15. Bxf5 gxf5 {1-0 (47) Sargissian,G (2689)-Kovalev,V (2683) St Petersburg 2018}) 6. b5 {[%emt 0:00:07]} O-O {[%emt 0:00:10]} 7. Be2 {[%emt 0:00:56]} c5 {[%emt 0:01:25] LiveBook: 7 Games} 8. bxc6 {[%emt 0:00:18]} Nxc6 {[%emt 0:00:15]} 9. Rb1 {[%emt 0:02:00]} Qc7 {[%emt 0:07:07]} 10. c4 $146 {[%emt 0:10:16]} ({Predecessor:} 10. a3 Bf5 11. Bb2 Ne4 12. Nxe4 Bxe4 13. O-O {1-0 (73) Schleining,Z (2379)-Manakova,M (2324) Warsaw 2013}) 10... Bf5 {[%emt 1:16:40]} 11. Rb2 {[%emt 0:07:29]} Nb4 {[%emt 0:00:00]} 12. O-O {[%emt 0:23:55]} Ne4 {[%emt 0:00:00]} 13. Nxe4 {[%emt 0:15:28]} dxe4 {[%emt 0:00:00]} 14. Nd2 {[%emt 0:00:39]} g5 {[%emt 0:02:00]} 15. a3 {[%emt 0:06:09]} Na6 {[%emt 0:00:00]} 16. Rb5 {[%emt 0:01:38]} e5 {[%emt 0:00:00]} 17. f3 {[%emt 0:29:26]} Bd7 {[%emt 0:00:00]} 18. Nxe4 {[%emt 0:00:00]} Bxb5 {[%emt 0:00:00]} 19. cxb5 {[%emt 0:00:00]} Nb8 {[%emt 0:00:00]} 20. Nxg5 {[%emt 0:00:00]} h6 {[%emt 0:00:00]} 21. Ne4 {[%emt 0:00:00]} exd4 {[%emt 0:00:00]} 22. exd4 {[%emt 0:00:00]} Rd8 {[%emt 0:00:00]} 23. d5 {[%emt 0:00:00]} f5 $2 {[%emt 0:00:00] [#]} (23... Qe5 $14) 24. Ng3 $1 {[%emt 0:00:00]} Qc5+ {[%emt 0:00:00]} 25. Kh1 {[%emt 0:00:00]} Rxd5 {[%emt 0:00:00]} 26. Qb3 {[%emt 0:00:00]} a4 {[%emt 0:00:00]} 27. Qa2 {[%emt 0:00:00]} Kh8 {[%emt 0:00:00]} 28. Bc4 {[%emt 0:00:14]} Rd8 {[%emt 0:00:00]} 29. Bb2 {[%emt 0:01:24]} Nd7 {[%emt 0:00:00] [#]} 30. Bxg7+ $1 {[%emt 0:00:29]} Kxg7 {[%emt 0:00:00]} 31. Be6 {[%emt 0:00:32]} ({White should play} 31. Re1 $18) 31... Qxb5 $2 {[%emt 0:00:00]} ({Black should try} 31... f4 $14 32. Nf5+ Kf6) 32. Rb1 {[%emt 0:00:56]} ({Less strong is} 32. Bxf5 Nf6 $14) ({Don't take} 32. Nxf5+ $6 Kh7 $18) 32... Qe5 {[%emt 0:00:00]} 33. Bxf5 {[%emt 0:00:22]} Nc5 {[%emt 0:00:00]} 34. Be4 {[%emt 0:01:23]} Rd7 {[%emt 0:00:00]} 35. Qc2 {[%emt 0:01:34]} ({White should try} 35. Bf5 $11 Re7 36. Qc2) 35... Rad8 {[%emt 0:00:00]} 36. Nf5+ $2 {[%emt 0:00:58]} (36. f4 $1 $11 Qc7 37. Nh5+ Kf8 38. h3) 36... Kf8 {[%emt 0:00:00]} 37. Re1 $2 {[%emt 0:00:55] [#]} (37. Nh4 $17 Kg7 38. Rf1) 37... Rd2 $1 {[%emt 0:00:00]} 38. Qc1 $2 {[%emt 0:00:05]} (38. Qb1 {was forced.} Qb2 39. Rg1) 38... b6 {[%emt 0:00:00]} 39. Ng3 {[%emt 0:00:15]} Qb2 {[%emt 0:00:00]} 40. Qc4 {[%emt 0:00:00]} R8d4 {[%emt 0:00:00]} 41. Qf1 {[%emt 0:08:52]} Rf2 {[%emt 0:00:00]} 42. Qg1 {[%emt 0:01:10]} Rdd2 {[%emt 0:00:00]} 43. f4 {[%emt 0:23:51]} Nxe4 {[%emt 0:44:30]} 44. Nxe4 {[%emt 0:00:00]} Rxg2 {[%emt 0:00:00]} 45. Qe3 {[%emt 0:00:00]} Rxh2+ $19 {[%emt 0:00:00]} 46. Kg1 {[%emt 0:00:00]} Rdg2+ {[%emt 0:01:30]} 0-1

[Event "Boardwalk Pearson Invitational 2019"]
[Site "Port Elizabeth"]
[Date "2019.03.30"]
[Round "4.4"]
[White "Klaver, Cornelis"]
[Black "Odendaal, Frederick"]
[Result "1/2-1/2"]
[ECO "A45"]
[WhiteElo "2072"]
[BlackElo "1992"]
[Annotator "NA"]
[PlyCount "21"]
[EventDate "2019.03.29"]
[EventType "swiss"]
[EventCountry "RSA"]
[SourceTitle "playchess.com"]
[Source "ChessBase"]
[SourceQuality "1"]
[TimeControl "40/5400+30:1800+30"]

1. d4 {[%emt 0:00:00]} Nf6 {[%emt 0:04:56]} 2. Bg5 {[%emt 0:00:00]} e6 {[%emt 0:02:34]} 3. e4 {[%emt 0:06:31]} Be7 {[%emt 0:00:48]} 4. Bd3 {[%emt 0:05:35]} d5 {[%emt 0:00:21]} 5. e5 {[%emt 0:00:09]} Nfd7 {[%emt 0:00:04]} 6. Bxe7 {[%emt 0:00:09]} Qxe7 {[%emt 0:00:08]} 7. c3 {[%emt 0:00:38]} c5 {[%emt 0:00:27]} 8. Ne2 {[%emt 0:00:59]} cxd4 {[%emt 0:00:37]} 9. cxd4 {[%emt 0:00:03]} Qb4+ {[%emt 0:00:02]} 10. Qd2 {[%emt 0:00:07]} Qxd2+ {[%emt 0:00:26]} 11. Nxd2 {[%emt 0:00:03]} 1/2-1/2

[Event "Boardwalk Pearson Invitational 2019"]
[Site "Port Elizabeth"]
[Date "2019.03.31"]
[Round "5.1"]
[White "Oatlhotse, Providence"]
[Black "Hercules, Benjamin Vincent"]
[Result "1-0"]
[ECO "A14"]
[WhiteElo "2320"]
[BlackElo "2194"]
[Annotator "NA"]
[PlyCount "47"]
[EventDate "2019.03.29"]
[EventType "swiss"]
[EventCountry "RSA"]
[SourceTitle "playchess.com"]
[Source "ChessBase"]
[SourceQuality "1"]
[TimeControl "40/5400+30:1800+30"]

1. c4 {[%emt 0:00:00]} e6 {[%emt 0:04:04]} 2. g3 {[%emt 0:00:00]} d5 {[%emt 0:00:04]} 3. Bg2 {[%emt 0:00:00]} Nf6 {[%emt 0:00:05]} 4. Nf3 {[%emt 0:00:00]} Be7 {[%emt 0:00:07]} 5. O-O {[%emt 0:00:03]} O-O {[%emt 0:00:10]} 6. b3 {[%emt 0:00:05]} b6 {[%emt 0:00:28]} 7. Bb2 {[%emt 0:01:30]} Bb7 {[%emt 0:03:36] LiveBook: 1762 Games} 8. e3 {[%emt 0:05:24]} c5 {[%emt 0:00:37]} 9. Qe2 {[%emt 0:00:43]} Nc6 {[%emt 0:00:07]} 10. Rd1 {[%emt 0:00:14]} Rc8 {[%emt 0:09:35]} 11. d3 {[%emt 0:02:51]} Rc7 {[%emt 0:01:36] A14: English Opening: 1...e6 with b3 by White} 12. Nc3 {[%emt 0:02:49]} Rd7 {[%emt 0:03:49]} 13. cxd5 {[%emt 0:01:49]} Nxd5 {[%emt 0:00:25]} 14. Nxd5 {[%emt 0:00:12]} Rxd5 {[%emt 0:00:34]} 15. d4 {[%emt 0:02:49]} Qa8 {[%emt 0:10:57]} 16. e4 $146 {[%emt 0:02:42]} ({Predecessor:} 16. dxc5 Rxd1+ 17. Rxd1 Bxc5 18. Ng5 Be7 19. Qh5 Bxg5 20. Qxg5 {0-1 (61) Gruber,T (2240)-Bunzmann,D (2390) Schwaebisch Gmuend 1998}) 16... Rdd8 {[%emt 0:06:18]} 17. d5 {[%emt 0:00:48]} Nb8 {[%emt 0:03:03]} 18. dxe6 {[%emt 0:02:47]} Bxe4 {[%emt 0:10:42]} 19. exf7+ {[%emt 0:00:38]} Rxf7 {[%emt 0:03:47]} 20. Rxd8+ {[%emt 0:01:42]} Bxd8 {[%emt 0:00:07]} 21. Ng5 {[%emt 0:00:15]} Bxg5 {[%emt 0:01:50]} 22. Bxe4 {[%emt 0:00:41]} Nc6 {[%emt 0:00:12]} 23. Qh5 {[%emt 0:03:24]} Bf6 {[%emt 0:05:16]} 24. Qxh7+ $18 {[%emt 0:01:09]} 1-0

[Event "Boardwalk Pearson Invitational 2019"]
[Site "Port Elizabeth"]
[Date "2019.03.31"]
[Round "5.2"]
[White "Odendaal, Frederick"]
[Black "Bezuidenhout, Roland"]
[Result "0-1"]
[ECO "E01"]
[WhiteElo "1992"]
[BlackElo "2171"]
[Annotator "NA"]
[PlyCount "90"]
[EventDate "2019.03.29"]
[EventType "swiss"]
[EventCountry "RSA"]
[SourceTitle "playchess.com"]
[Source "ChessBase"]
[SourceQuality "1"]
[TimeControl "40/5400+30:1800+30"]

1. d4 {[%emt 0:00:00]} Nf6 {[%emt 0:01:05]} 2. c4 {[%emt 0:00:27]} e6 {[%emt 0:00:30]} 3. Nf3 {[%emt 0:00:51]} d5 {[%emt 0:00:18]} 4. g3 {[%emt 0:00:41]} dxc4 {[%emt 0:01:29]} 5. Qa4+ {[%emt 0:02:05]} Nbd7 {[%emt 0:00:18]} 6. Qxc4 {[%emt 0:00:02]} a6 {[%emt 0:00:39]} 7. Bf4 {[%emt 0:05:39]} Nd5 {[%emt 0:00:18]} 8. Bg5 {[%emt 0:00:01]} N7f6 {[%emt 0:03:43]} 9. e4 {[%emt 0:08:23]} h6 {[%emt 0:02:52]} 10. Bxf6 {[%emt 0:00:30]} Nxf6 {[%emt 0:00:14]} 11. Nbd2 {[%emt 0:01:44]} b5 {[%emt 0:01:36]} 12. Qc6+ {[%emt 0:03:01]} Bd7 {[%emt 0:02:21]} 13. Qc2 {[%emt 0:02:22]} Rc8 {[%emt 0:00:07]} 14. Nb3 {[%emt 0:05:24]} Bb4+ {[%emt 0:10:41]} 15. Nfd2 {[%emt 0:01:22]} Qe7 {[%emt 0:03:26]} 16. Rc1 {[%emt 0:02:34]} e5 {[%emt 0:06:59]} 17. dxe5 {[%emt 0:03:40]} Qxe5 {[%emt 0:00:14]} 18. Bg2 {[%emt 0:00:11]} c5 {[%emt 0:00:44]} 19. a3 {[%emt 1:00:33]} Bxd2+ {[%emt 0:00:21]} 20. Nxd2 {[%emt 0:00:00]} O-O {[%emt 0:01:47]} 21. O-O {[%emt 0:00:00]} Rfe8 {[%emt 0:00:45]} 22. Rfe1 {[%emt 0:00:00]} Qh5 {[%emt 0:03:29]} 23. Nf1 {[%emt 0:00:00]} c4 {[%emt 0:00:39]} 24. Ne3 {[%emt 0:00:00]} Ng4 {[%emt 0:02:09]} 25. Nxg4 {[%emt 0:00:00]} Bxg4 {[%emt 0:00:05]} 26. Qc3 {[%emt 0:00:00]} Rcd8 {[%emt 0:56:11]} 27. f3 {[%emt 0:00:00]} Be6 {[%emt 0:00:00]} 28. Rcd1 {[%emt 0:00:00]} Qc5+ {[%emt 0:00:00]} 29. Kf1 {[%emt 0:00:00]} a5 {[%emt 0:00:00]} 30. b4 {[%emt 0:00:00]} axb4 {[%emt 0:00:00]} 31. axb4 {[%emt 0:00:00]} Qa7 {[%emt 0:00:00]} 32. Ra1 {[%emt 0:00:00]} Qd4 {[%emt 0:00:00]} 33. Qxd4 {[%emt 0:00:00]} Rxd4 {[%emt 0:00:00]} 34. Red1 {[%emt 0:00:00]} Rxd1+ {[%emt 0:00:00]} 35. Rxd1 {[%emt 0:00:00]} Ra8 {[%emt 0:00:00]} 36. Ke2 {[%emt 0:00:00]} Ra4 {[%emt 0:00:00]} 37. Ke3 {[%emt 0:00:00]} Rxb4 {[%emt 0:00:00]} 38. Rd8+ {[%emt 0:00:00]} Kh7 {[%emt 0:00:00]} 39. f4 {[%emt 0:02:48]} Rb3+ {[%emt 0:00:00]} 40. Kf2 {[%emt 0:00:00]} c3 {[%emt 0:00:00]} 41. Rd1 {[%emt 0:01:54]} Rb2+ {[%emt 0:00:00]} 42. Kf3 {[%emt 0:00:11]} b4 {[%emt 0:00:00]} 43. f5 {[%emt 0:01:05]} Bb3 {[%emt 0:00:00]} 44. Rd7 {[%emt 0:00:02]} c2 {[%emt 0:00:00]} 45. Rc7 {[%emt 0:00:02]} Rb1 {[%emt 0:00:00]} 0-1

[Event "Boardwalk Pearson Invitational 2019"]
[Site "Port Elizabeth"]
[Date "2019.03.31"]
[Round "5.3"]
[White "Khumalo, Keith"]
[Black "Klaver, Cornelis"]
[Result "1/2-1/2"]
[ECO "A52"]
[WhiteElo "2015"]
[BlackElo "2072"]
[Annotator "NA"]
[PlyCount "45"]
[EventDate "2019.03.29"]
[EventType "swiss"]
[EventCountry "RSA"]
[SourceTitle "playchess.com"]
[Source "ChessBase"]
[SourceQuality "1"]
[TimeControl "40/5400+30:1800+30"]

1. d4 {[%emt 0:00:00]} Nf6 {[%emt 0:04:27]} 2. c4 {[%emt 0:00:14]} e5 {[%emt 0:00:07]} 3. dxe5 {[%emt 0:06:15]} Ng4 {[%emt 0:00:06]} 4. Nf3 {[%emt 0:02:31]} Nc6 {[%emt 0:00:05]} 5. e3 {[%emt 0:04:02]} Ngxe5 {[%emt 0:00:58]} 6. Be2 {[%emt 0:01:39]} Bc5 {[%emt 0:02:56]} 7. O-O {[%emt 0:02:51]} O-O {[%emt 0:01:11]} 8. Nc3 {[%emt 0:00:08]} a5 {[%emt 0:01:08]} 9. Nd4 {[%emt 0:00:08]} d6 {[%emt 0:02:16]} 10. f4 {[%emt 0:00:43]} Ng6 {[%emt 0:01:41]} 11. Kh1 {[%emt 0:03:15]} f5 {[%emt 0:06:06]} 12. Rf3 {[%emt 0:03:02]} Nce7 {[%emt 0:08:29]} 13. Rh3 {[%emt 0:02:39]} Bxd4 {[%emt 0:14:02]} 14. Qxd4 {[%emt 0:01:01]} Be6 {[%emt 0:03:52]} 15. b3 {[%emt 0:00:12]} c5 {[%emt 0:01:52]} 16. Qd2 {[%emt 0:01:22]} d5 {[%emt 0:06:03]} 17. cxd5 {[%emt 0:00:11]} Nxd5 {[%emt 0:00:03]} 18. Bc4 {[%emt 0:01:53]} Nxc3 {[%emt 0:03:27]} 19. Bxe6+ {[%emt 0:01:20]} Kh8 {[%emt 0:00:10]} 20. Qe1 {[%emt 0:02:41]} Ra6 {[%emt 0:10:42]} 21. Bb2 {[%emt 0:00:55]} Rxe6 {[%emt 0:00:20]} 22. Qxc3 {[%emt 0:00:03]} Qe7 {[%emt 0:00:06]} 23. Rd1 {[%emt 0:01:06]} 1/2-1/2